[Event "CZE-ch Junior 2020"]
[Site "Kouty nad Desnou"]
[Date "2020.03.08"]
[Round "3.1"]
[White "Finek, Vaclav"]
[Black "Brejnik, Gustav"]
[Result "1-0"]
[ECO "A06"]
[WhiteElo "2211"]
[BlackElo "2259"]
[Annotator "ChessBase"]
[PlyCount "47"]
[EventDate "2020.03.07"]
[EventCountry "CZE"]
[SourceTitle "playchess.com"]
[Source "ChessBase"]
[SourceQuality "1"]
[TimeControl "5400+30"]

1. Nf3 {[%emt 0:00:00]} d5 {[%emt 0:03:00]} 2. d4 {[%emt 0:00:00]} Bf5 {[%emt 0:00:05]} 3. c4 {[%emt 0:00:27]} e6 {[%emt 0:00:28]} 4. Nc3 {[%emt 0:00:45]} c6 {[%emt 0:09:31]} 5. Qb3 {[%emt 0:05:05]} Na6 {[%emt 0:20:11]} 6. Qxb7 {[%emt 0:15:14]} Nb4 {[%emt 0:00:12]} 7. Ne5 {[%emt 0:00:32]} Nc2+ {[%emt 0:09:20]} 8. Kd1 {[%emt 0:00:06]} Ne7 {[%emt 0:00:06]} 9. Nb5 {[%emt 0:03:56]} Rc8 {[%emt 0:01:27]} 10. c5 {[%emt 0:01:19]} cxb5 {[%emt 0:02:45]} 11. e3 {[%emt 0:00:17]} a6 {[%emt 0:05:51]} 12. Qxa6 {[%emt 0:00:25]} Nxa1 {[%emt 0:12:04]} 13. Bxb5+ {[%emt 0:00:10]} Nc6 {[%emt 0:00:05]} 14. Nxc6 {[%emt 0:02:37]} Rxc6 {[%emt 0:01:04]} 15. Qxc6+ {[%emt 0:00:14]} Ke7 {[%emt 0:00:04]} 16. e4 {[%emt 0:00:08]} Kf6 {[%emt 0:08:39]} 17. exf5 {[%emt 0:00:50]} Be7 {[%emt 0:10:11]} 18. fxe6 {[%emt 0:00:37]} Qa8 {[%emt 0:01:21]} 19. Qc7 {[%emt 0:01:14]} Qb8 {[%emt 0:01:04]} 20. Bg5+ {[%emt 0:00:18]} Kxg5 {[%emt 0:01:23]} 21. Qxe7+ {[%emt 0:00:07]} Kg6 {[%emt 0:05:17]} 22. Qxf7+ {[%emt 0:02:46]} Kh6 {[%emt 0:00:11]} 23. g4 {[%emt 0:00:14]} g6 {[%emt 0:01:03]} 24. h4 {[%emt 0:00:26]} 1-0

[Event "CZE-ch Junior 2020"]
[Site "Kouty nad Desnou"]
[Date "2020.03.08"]
[Round "3.2"]
[White "Cerny, David"]
[Black "Eret, Jonas"]
[Result "1/2-1/2"]
[ECO "C01"]
[WhiteElo "2181"]
[BlackElo "2211"]
[Annotator "ChessBase"]
[PlyCount "62"]
[EventDate "2020.03.07"]
[EventCountry "CZE"]
[SourceTitle "playchess.com"]
[Source "ChessBase"]
[SourceQuality "1"]
[TimeControl "5400+30"]

1. e4 {[%emt 0:00:00]} e6 {[%emt 0:00:04]} 2. d4 {[%emt 0:00:05]} d5 {[%emt 0:00:08]} 3. exd5 {[%emt 0:00:31]} exd5 {[%emt 0:00:07]} 4. c4 {[%emt 0:00:52]} c6 {[%emt 0:00:59]} 5. cxd5 {[%emt 0:01:10]} cxd5 {[%emt 0:01:16]} 6. Bb5+ {[%emt 0:01:36]} Bd7 {[%emt 0:01:46]} 7. Qe2+ {[%emt 0:03:33]} Qe7 {[%emt 0:02:29]} 8. Qxe7+ {[%emt 0:01:29]} Bxe7 {[%emt 0:00:11]} 9. Bxd7+ {[%emt 0:00:59]} Nxd7 {[%emt 0:00:29]} 10. Nc3 {[%emt 0:01:10]} Ngf6 {[%emt 0:00:45]} 11. Nf3 {[%emt 0:00:48]} O-O {[%emt 0:01:13]} 12. O-O {[%emt 0:01:21]} a6 {[%emt 0:01:38]} 13. Bg5 {[%emt 0:02:16]} h6 {[%emt 0:02:31]} 14. Bh4 {[%emt 0:00:48]} g5 {[%emt 0:01:30]} 15. Bg3 {[%emt 0:01:02]} Rac8 {[%emt 0:01:06]} 16. a3 {[%emt 0:05:26]} Nb6 {[%emt 0:01:44]} 17. Ne5 {[%emt 0:01:33]} Nh5 {[%emt 0:06:14]} 18. f3 {[%emt 0:01:53]} Nxg3 {[%emt 0:00:35]} 19. hxg3 {[%emt 0:00:12]} Rfd8 {[%emt 0:00:24]} 20. Rfe1 {[%emt 0:05:04]} Bf6 {[%emt 0:00:53]} 21. f4 {[%emt 0:03:39]} Kg7 {[%emt 0:01:56]} 22. Kh2 {[%emt 0:01:40]} Rc7 {[%emt 0:02:01]} 23. Re2 {[%emt 0:07:53]} Re7 {[%emt 0:01:24]} 24. Rae1 {[%emt 0:02:15]} Nc4 {[%emt 0:01:34]} 25. Nd1 {[%emt 0:01:41]} Nd6 {[%emt 0:00:34]} 26. Nf2 {[%emt 0:07:25]} gxf4 {[%emt 0:00:48]} 27. gxf4 {[%emt 0:00:39]} h5 {[%emt 0:00:34]} 28. Rc1 {[%emt 0:06:00]} Nf5 {[%emt 0:00:31]} 29. Rd2 {[%emt 0:01:07]} Rde8 {[%emt 0:01:32]} 30. Rc5 {[%emt 0:01:44]} Rd8 {[%emt 0:00:47]} 31. Rc1 {[%emt 0:01:15]} Bh4 {[%emt 0:02:35]} 1/2-1/2

[Event "CZE-ch Junior 2020"]
[Site "Kouty nad Desnou"]
[Date "2020.03.08"]
[Round "3.3"]
[White "Riha, Vojtech"]
[Black "Stinka, Jakub"]
[Result "1/2-1/2"]
[ECO "B20"]
[WhiteElo "2306"]
[BlackElo "2263"]
[Annotator "ChessBase"]
[PlyCount "127"]
[EventDate "2020.03.07"]
[EventCountry "CZE"]
[SourceTitle "playchess.com"]
[Source "ChessBase"]
[SourceQuality "1"]
[TimeControl "5400+30"]

1. e4 {[%emt 0:00:00]} c5 {[%emt 0:00:06]} 2. b4 {[%emt 0:00:00]} cxb4 {[%emt 0:00:28]} 3. a3 {[%emt 0:00:00]} b3 {[%emt 0:00:43]} 4. cxb3 {[%emt 0:00:13]} d5 {[%emt 0:00:16]} 5. exd5 {[%emt 0:01:39]} Nf6 {[%emt 0:00:45]} 6. Nc3 {[%emt 0:00:06]} Nxd5 {[%emt 0:00:58]} 7. Qf3 {[%emt 0:11:30]} Nf6 {[%emt 0:05:15]} 8. Bb5+ {[%emt 0:04:48]} Nbd7 {[%emt 0:03:36]} 9. d4 {[%emt 0:03:15]} g6 {[%emt 0:02:56]} 10. Qe2 {[%emt 0:06:22]} Bg7 {[%emt 0:02:31]} 11. Nf3 {[%emt 0:00:35]} O-O {[%emt 0:01:10]} 12. O-O {[%emt 0:01:15]} a6 {[%emt 0:02:21]} 13. Bd3 {[%emt 0:02:19]} Nb6 {[%emt 0:01:30]} 14. h3 {[%emt 0:03:25]} Be6 {[%emt 0:04:08]} 15. b4 {[%emt 0:03:12]} Rc8 {[%emt 0:02:31]} 16. Bd2 {[%emt 0:02:57]} Bc4 {[%emt 0:04:39]} 17. Rac1 {[%emt 0:05:19]} Bxd3 {[%emt 0:14:12]} 18. Qxd3 {[%emt 0:00:04]} Nc4 {[%emt 0:07:52]} 19. Na4 {[%emt 0:01:28]} b5 {[%emt 0:04:59]} 20. Nc5 {[%emt 0:01:10]} e5 {[%emt 0:01:00]} 21. dxe5 {[%emt 0:11:32]} Qxd3 {[%emt 0:06:31]} 22. Nxd3 {[%emt 0:00:04]} Nd7 {[%emt 0:05:44]} 23. Bf4 {[%emt 0:02:52]} Nxa3 {[%emt 0:01:58]} 24. Rfe1 {[%emt 0:04:02]} Nc4 {[%emt 0:02:54]} 25. e6 {[%emt 0:07:04]} fxe6 {[%emt 0:01:34]} 26. Rxe6 {[%emt 0:00:12]} Ndb6 {[%emt 0:02:17]} 27. Be3 {[%emt 0:04:21]} Nxe3 {[%emt 0:03:26]} 28. Rxc8 {[%emt 0:00:57]} Rxc8 {[%emt 0:00:51]} 29. Rxb6 {[%emt 0:01:18]} Nc2 {[%emt 0:02:02]} 30. Rxa6 Rd8 {[%emt 0:01:21]} 31. Nc5 {[%emt 0:04:45]} Nxb4 {[%emt 0:02:17]} 32. Rb6 {[%emt 0:01:36]} Bf8 {[%emt 0:04:19]} 33. Rxb5 {[%emt 0:02:52]} Rd1+ {[%emt 0:03:01]} 34. Kh2 {[%emt 0:00:05]} Bd6+ {[%emt 0:02:37]} 35. g3 {[%emt 0:00:30]} Bxc5 {[%emt 0:02:56]} 36. Rxc5 {[%emt 0:00:06]} Nd3 {[%emt 0:00:02]} 37. Rc8+ {[%emt 0:00:55]} Kg7 {[%emt 0:00:07]} 38. Rc7+ {[%emt 0:00:47]} Kg8 {[%emt 0:00:28]} 39. Kg2 {[%emt 0:01:25]} Ne1+ {[%emt 0:01:08]} 40. Nxe1 {[%emt 0:00:05]} Rxe1 {[%emt 0:00:05]} 41. g4 {[%emt 0:02:40]} g5 {[%emt 0:01:48]} 42. Rc5 {[%emt 0:01:30]} h6 {[%emt 0:00:51]} 43. h4 {[%emt 0:00:56]} gxh4 {[%emt 0:00:00]} 44. Rh5 {[%emt 0:00:00]} Kg7 {[%emt 0:00:00]} 45. Rxh4 {[%emt 0:00:00]} Kg6 {[%emt 0:00:00]} 46. Rh5 {[%emt 0:00:00]} Ra1 {[%emt 0:00:00]} 47. Rb5 {[%emt 0:00:00]} Ra4 {[%emt 0:00:00]} 48. Kg3 {[%emt 0:00:00]} Rc4 {[%emt 0:00:00]} 49. Rb6+ {[%emt 0:00:00]} Kg7 {[%emt 0:00:00]} 50. f4 {[%emt 0:00:00]} Rc3+ {[%emt 0:00:00]} 51. Kh4 {[%emt 0:00:00]} Rc1 {[%emt 0:00:00]} 52. f5 {[%emt 0:00:00]} Rh1+ {[%emt 0:00:00]} 53. Kg3 {[%emt 0:00:00]} Rf1 {[%emt 0:00:00]} 54. Rb7+ {[%emt 0:00:00]} Kg8 {[%emt 0:00:00]} 55. Ra7 {[%emt 0:00:00]} h5 {[%emt 0:00:00]} 56. Kh4 {[%emt 0:00:00]} hxg4 {[%emt 0:00:00]} 57. Kxg4 {[%emt 0:00:00]} Rb1 {[%emt 0:00:00]} 58. Kg5 {[%emt 0:00:00]} Rb6 {[%emt 0:00:00]} 59. f6 {[%emt 0:00:00]} Rb1 {[%emt 0:00:00]} 60. Kg6 {[%emt 0:00:00]} Rg1+ {[%emt 0:00:00]} 61. Kf5 {[%emt 0:00:00]} Rf1+ {[%emt 0:00:00]} 62. Kg6 {[%emt 0:00:00]} Rg1+ {[%emt 0:00:00]} 63. Kf5 {[%emt 0:00:00]} Rf1+ {[%emt 0:00:00]} 64. Ke4 1/2-1/2

[Event "CZE-ch Junior 2020"]
[Site "Kouty nad Desnou"]
[Date "2020.03.08"]
[Round "3.4"]
[White "Bulockin, Martin"]
[Black "Sramek, Vojtech"]
[Result "1/2-1/2"]
[ECO "D02"]
[WhiteElo "2218"]
[BlackElo "2181"]
[Annotator "ChessBase"]
[PlyCount "71"]
[EventDate "2020.03.07"]
[EventCountry "CZE"]
[SourceTitle "playchess.com"]
[Source "ChessBase"]
[SourceQuality "1"]
[TimeControl "5400+30"]

1. d4 {[%emt 0:00:00]} d5 {[%emt 0:00:00]} 2. Nf3 {[%emt 0:01:02]} e6 {[%emt 0:01:44]} 3. g3 {[%emt 0:00:42]} Nf6 {[%emt 0:05:18]} 4. Bg2 {[%emt 0:00:44]} c6 {[%emt 0:04:55]} 5. O-O {[%emt 0:03:24]} Be7 {[%emt 0:01:52]} 6. Nbd2 {[%emt 0:02:26]} O-O {[%emt 0:01:33]} 7. c4 {[%emt 0:04:40]} b6 {[%emt 0:02:47]} 8. Qc2 {[%emt 0:02:09]} Bb7 {[%emt 0:03:07]} 9. b3 {[%emt 0:02:26]} Nbd7 {[%emt 0:02:23]} 10. Bb2 {[%emt 0:03:50]} Rc8 {[%emt 0:05:05]} 11. Ne5 {[%emt 0:04:33]} c5 {[%emt 0:07:54]} 12. e3 {[%emt 0:04:47]} Qc7 {[%emt 0:07:44]} 13. Nxd7 {[%emt 0:09:22]} Qxd7 {[%emt 0:04:26]} 14. dxc5 {[%emt 0:03:39]} dxc4 {[%emt 0:04:50]} 15. Bxb7 {[%emt 0:04:25]} Qxb7 {[%emt 0:00:21]} 16. Nxc4 {[%emt 0:00:52]} Rxc5 {[%emt 0:01:36]} 17. Qe2 {[%emt 0:02:03]} Rd8 {[%emt 0:10:25]} 18. Rfd1 {[%emt 0:03:28]} Rcd5 {[%emt 0:02:57]} 19. Ne5 {[%emt 0:04:39]} Ne4 {[%emt 0:10:03]} 20. Rxd5 {[%emt 0:07:04]} Qxd5 {[%emt 0:00:40]} 21. Nf3 {[%emt 0:03:42]} Bf6 {[%emt 0:05:22]} 22. Bxf6 {[%emt 0:01:13]} Nxf6 {[%emt 0:00:10]} 23. Rc1 {[%emt 0:02:43]} g6 {[%emt 0:06:45]} 24. Kg2 {[%emt 0:03:09]} Ne4 {[%emt 0:00:59]} 25. Qc4 {[%emt 0:02:14]} Qxc4 {[%emt 0:03:23]} 26. Rxc4 {[%emt 0:00:08]} Nc5 {[%emt 0:02:04]} 27. b4 {[%emt 0:02:39]} Nd3 {[%emt 0:00:50]} 28. b5 {[%emt 0:02:40]} Rd5 {[%emt 0:02:17]} 29. Rd4 {[%emt 0:01:39]} Rxd4 {[%emt 0:01:12]} 30. Nxd4 {[%emt 0:00:05]} Nc5 {[%emt 0:00:50]} 31. Kf3 {[%emt 0:01:41]} Kf8 {[%emt 0:00:11]} 32. Nc6 {[%emt 0:01:21]} a6 {[%emt 0:00:08]} 33. bxa6 {[%emt 0:00:08]} Nxa6 {[%emt 0:00:05]} 34. e4 {[%emt 0:03:03]} Ke8 {[%emt 0:01:08]} 35. e5 {[%emt 0:01:00]} Kd7 {[%emt 0:00:33]} 36. Nd4 {[%emt 0:00:07]} 1/2-1/2

[Event "CZE-ch Junior 2020"]
[Site "Kouty nad Desnou"]
[Date "2020.03.08"]
[Round "3.6"]
[White "Sprenar, Petr"]
[Black "Simet, Martin"]
[Result "1-0"]
[ECO "E04"]
[WhiteElo "2302"]
[BlackElo "2218"]
[Annotator "ChessBase"]
[PlyCount "65"]
[EventDate "2020.03.07"]
[EventCountry "CZE"]
[SourceTitle "playchess.com"]
[Source "ChessBase"]
[SourceQuality "1"]
[TimeControl "5400+30"]

1. d4 {[%emt 0:00:00]} Nf6 {[%emt 0:01:01]} 2. c4 {[%emt 0:00:00]} e6 {[%emt 0:01:17]} 3. g3 {[%emt 0:00:01]} d5 {[%emt 0:01:52]} 4. Nf3 {[%emt 0:00:07]} dxc4 {[%emt 0:02:14]} 5. Bg2 {[%emt 0:00:06]} Bd7 {[%emt 0:00:09]} 6. Ne5 {[%emt 0:00:03]} Bc6 {[%emt 0:00:07]} 7. Nxc6 {[%emt 0:00:04]} Nxc6 {[%emt 0:00:08]} 8. O-O {[%emt 0:01:37]} Qd7 {[%emt 0:02:13]} 9. Nc3 {[%emt 0:02:16]} Rd8 {[%emt 0:01:51]} 10. e3 {[%emt 0:00:57]} a6 {[%emt 0:02:57]} 11. Qe2 {[%emt 0:14:31]} Na5 {[%emt 0:09:00]} 12. Bd2 {[%emt 0:14:10]} Bb4 {[%emt 0:03:06]} 13. a3 {[%emt 0:13:02]} Be7 {[%emt 0:07:26]} 14. Rad1 {[%emt 0:07:38]} b5 {[%emt 0:04:11]} 15. e4 {[%emt 0:03:36]} Nb3 {[%emt 0:03:21]} 16. Be3 {[%emt 0:00:18]} O-O {[%emt 0:01:03]} 17. f4 {[%emt 0:01:46]} c6 {[%emt 0:03:09]} 18. g4 {[%emt 0:02:46]} Qa7 {[%emt 0:06:48]} 19. g5 {[%emt 0:03:21]} Nd7 {[%emt 0:12:54]} 20. e5 {[%emt 0:04:50]} Qc7 {[%emt 0:03:38]} 21. Qh5 {[%emt 0:04:14]} Rfe8 {[%emt 0:04:49]} 22. Rf3 {[%emt 0:03:14]} g6 {[%emt 0:10:04]} 23. Qh6 {[%emt 0:01:11]} Bf8 {[%emt 0:02:05]} 24. Qh4 {[%emt 0:00:05]} c5 {[%emt 0:02:35]} 25. d5 {[%emt 0:02:05]} Nd4 {[%emt 0:00:28]} 26. Rh3 {[%emt 0:01:41]} h6 {[%emt 0:00:41]} 27. d6 {[%emt 0:03:08]} Qb6 {[%emt 0:01:23]} 28. gxh6 {[%emt 0:04:35]} Nf5 {[%emt 0:02:26]} 29. Qg5 {[%emt 0:00:57]} Rb8 {[%emt 0:00:49]} 30. Be4 {[%emt 0:04:37]} Qd8 {[%emt 0:02:12]} 31. Qg2 {[%emt 0:01:24]} Kh7 {[%emt 0:03:19]} 32. Bxf5 {[%emt 0:00:27]} gxf5 {[%emt 0:00:13]} 33. Kf2 {[%emt 0:01:11]} 1-0

[Event "CZE-ch Junior 2020"]
[Site "Kouty nad Desnou"]
[Date "2020.03.09"]
[Round "4.5"]
[White "Eret, Jonas"]
[Black "Riha, Vojtech"]
[Result "1-0"]
[ECO "A48"]
[WhiteElo "2211"]
[BlackElo "2306"]
[Annotator "RC"]
[PlyCount "161"]
[EventDate "2020.03.07"]
[EventCountry "CZE"]
[SourceTitle "playchess.com"]
[Source "ChessBase"]
[SourceQuality "1"]
[TimeControl "5400+30"]

1. d4 {[%emt 0:00:00]} Nf6 {[%emt 0:00:00]} 2. Nf3 {[%emt 0:00:12]} g6 {[%emt 0:00:00]} 3. Bf4 {[%emt 0:00:19]} Bg7 {[%emt 0:00:42]} 4. e3 {[%emt 0:01:01]} d6 {[%emt 0:00:25]} 5. h3 {[%emt 0:00:22]} O-O {[%emt 0:01:13]} 6. Be2 {[%emt 0:01:28]} b6 {[%emt 0:00:59]} 7. O-O {[%emt 0:01:06]} Bb7 {[%emt 0:00:42]} 8. Nbd2 {[%emt 0:01:40]} Nbd7 {[%emt 0:00:56]} 9. a4 {[%emt 0:02:04]} a5 {[%emt 0:00:51]} 10. c3 {[%emt 0:01:36]} Nd5 {[%emt 0:06:38]} 11. Bh2 {[%emt 0:04:36]} e5 {[%emt 0:01:50]} 12. Qb3 {[%emt 0:18:30]} Qe7 {[%emt 0:04:02]} 13. Bc4 {[%emt 0:03:14]} N5f6 {[%emt 0:03:55]} 14. Rfd1 {[%emt 0:09:25]} e4 {[%emt 0:02:38]} 15. Ne1 {[%emt 0:00:20]} Kh8 16. Nc2 g5 {[%emt 0:09:10]} 17. Be2 {[%emt 0:09:16]} Ne8 {[%emt 0:03:05]} 18. Rf1 {[%emt 0:05:41]} f5 {[%emt 0:03:21]} 19. f3 {[%emt 0:01:20]} Nef6 {[%emt 0:04:33]} 20. f4 {[%emt 0:05:08]} g4 {[%emt 0:10:33]} 21. hxg4 {[%emt 0:05:08]} Nxg4 {[%emt 0:00:13]} 22. Bxg4 {[%emt 0:00:40]} fxg4 {[%emt 0:00:04]} 23. Bg3 {[%emt 0:01:09]} Rf5 {[%emt 0:03:05]} 24. Kf2 {[%emt 0:02:09]} Bd5 {[%emt 0:06:07]} 25. Qa3 {[%emt 0:05:14]} h5 {[%emt 0:03:24]} 26. Rh1 {[%emt 0:00:24]} Bf6 {[%emt 0:00:29]} 27. Rh2 {[%emt 0:01:01]} Kg7 {[%emt 0:00:45]} 28. Rah1 {[%emt 0:00:35]} Rh8 {[%emt 0:00:47]} 29. Bh4 {[%emt 0:00:55]} Bxh4+ {[%emt 0:02:08]} 30. Rxh4 {[%emt 0:00:33]} Nf8 {[%emt 0:00:06]} 31. c4 {[%emt 0:02:50]} Ng6 {[%emt 0:03:56]} 32. g3 {[%emt 0:01:45]} Nxh4 {[%emt 0:01:53]} 33. Rxh4 {[%emt 0:00:07]} Be6 {[%emt 0:00:36]} 34. d5 {[%emt 0:00:30]} Bd7 {[%emt 0:00:23]} 35. Nd4 {[%emt 0:00:36]} Rff8 {[%emt 0:00:24]} 36. Qc3 {[%emt 0:00:40]} Kg6 {[%emt 0:00:59]} 37. Qc2 {[%emt 0:01:49]} Re8 {[%emt 0:01:27]} 38. Nb1 {[%emt 0:02:56]} Rhf8 {[%emt 0:02:07]} 39. Nc3 {[%emt 0:00:43]} Kh6 {[%emt 0:01:08]} 40. Ke1 {[%emt 0:00:58]} Qh7 {[%emt 0:04:14]} 41. Qh2 {[%emt 0:04:18]} Qg6 {[%emt 0:00:14]} 42. Qc2 {[%emt 0:02:18]} Qh7 {[%emt 0:01:39]} 43. Nce2 {[%emt 0:03:45]} Bf5 {[%emt 0:01:08]} 44. Nb5 {[%emt 0:00:00]} Rf7 {[%emt 0:00:00]} 45. Ned4 {[%emt 0:00:00]} Qg6 {[%emt 0:00:00]} 46. Qc3 {[%emt 0:00:00]} Qf6 {[%emt 0:00:00]} 47. Qd2 {[%emt 0:00:00]} Qg7 {[%emt 0:00:00]} 48. Nxc7 {[%emt 0:00:00]} Rc8 {[%emt 0:00:00]} 49. Ncb5 {[%emt 0:00:00]} Qg6 {[%emt 0:00:00]} 50. b3 {[%emt 0:00:00]} Bd7 {[%emt 0:00:00]} 51. Nc3 {[%emt 0:00:00]} Re8 {[%emt 0:00:00]} 52. Qh2 {[%emt 0:00:00]} Ree7 {[%emt 0:00:00]} 53. Nc2 {[%emt 0:00:00]} Rh7 {[%emt 0:00:00]} 54. Qd2 {[%emt 0:00:00]} Rh8 {[%emt 0:00:00]} 55. Ne2 {[%emt 0:00:00]} Rf8 {[%emt 0:00:00]} 56. Ned4 {[%emt 0:00:00]} Rc8 {[%emt 0:00:00]} 57. Ke2 {[%emt 0:00:00]} Rf7 {[%emt 0:00:00]} 58. Ne1 {[%emt 0:00:00]} Qf6 {[%emt 0:00:00]} 59. Ng2 {[%emt 0:00:00]} Re7 {[%emt 0:00:00]} 60. Qe1 {[%emt 0:00:00]} Rf7 {[%emt 0:01:22]} 61. f5 {[%emt 0:00:00]} Bxf5 {[%emt 0:01:02]} 62. Rxh5+ {[%emt 0:00:00]} Kxh5 {[%emt 0:01:24]} 63. Qh1+ {[%emt 0:00:00]} Kg6 {[%emt 0:00:54]} 64. Nf4+ {[%emt 0:00:00]} Kg7 {[%emt 0:00:10]} 65. Nh5+ {[%emt 0:00:00]} Kg6 {[%emt 0:00:39]} 66. Nxf6 {[%emt 0:00:00]} Rxf6 {[%emt 0:00:07]} 67. Nxf5 {[%emt 0:01:07]} Rxf5 {[%emt 0:00:07]} 68. Qxe4 {[%emt 0:00:07]} Kg5 {[%emt 0:01:07]} 69. Qe7+ {[%emt 0:00:08]} Rf6 {[%emt 0:00:26]} 70. Qg7+ {[%emt 0:00:21]} Rg6 {[%emt 0:00:10]} 71. Qb7 {[%emt 0:01:43]} Rf8 {[%emt 0:00:59]} 72. Qxb6 {[%emt 0:00:43]} Rf3 {[%emt 0:00:24]} 73. Qd8+ {[%emt 0:01:03]} Rgf6 {[%emt 0:00:34]} 74. c5 {[%emt 0:00:19]} dxc5 {[%emt 0:00:53]} 75. d6 {[%emt 0:00:26]} Kh5 {[%emt 0:01:28]} 76. Qe8+ {[%emt 0:00:26]} Kh6 {[%emt 0:00:15]} 77. Qh8+ {[%emt 0:00:23]} Kg6 {[%emt 0:00:06]} 78. Qg8+ {[%emt 0:00:35]} Kh5 {[%emt 0:00:19]} 79. Qh7+ {[%emt 0:01:53]} Kg5 {[%emt 0:00:08]} 80. Qh4+ {[%emt 0:00:16]} Kf5 {[%emt 0:00:16]} 81. d7 {[%emt 0:00:11]} 1-0

[Event "CZE-ch Junior 2020"]
[Site "Kouty nad Desnou"]
[Date "2020.03.09"]
[Round "4.6"]
[White "Finek, Vaclav"]
[Black "Cerny, David"]
[Result "1/2-1/2"]
[ECO "A37"]
[WhiteElo "2211"]
[BlackElo "2181"]
[Annotator "ChessBase"]
[PlyCount "76"]
[EventDate "2020.03.07"]
[EventCountry "CZE"]
[SourceTitle "playchess.com"]
[Source "ChessBase"]
[SourceQuality "1"]
[TimeControl "5400+30"]

1. Nf3 {[%emt 0:00:00]} g6 {[%emt 0:00:00]} 2. c4 {[%emt 0:00:00]} Bg7 {[%emt 0:00:38]} 3. g3 {[%emt 0:00:00]} c5 {[%emt 0:01:01]} 4. Bg2 {[%emt 0:00:00]} Nc6 {[%emt 0:01:25]} 5. Nc3 {[%emt 0:00:00]} d6 {[%emt 0:00:47]} 6. O-O {[%emt 0:00:10]} Bg4 {[%emt 0:01:13]} 7. h3 {[%emt 0:00:05]} Bd7 {[%emt 0:00:39]} 8. e3 {[%emt 0:00:07]} Nf6 {[%emt 0:01:49]} 9. d4 {[%emt 0:00:29]} O-O {[%emt 0:02:16]} 10. b3 {[%emt 0:04:16]} e5 {[%emt 0:03:51]} 11. Bb2 {[%emt 0:05:12]} Qe7 {[%emt 0:06:47]} 12. Nd5 {[%emt 0:05:23]} Nxd5 {[%emt 0:06:45]} 13. cxd5 {[%emt 0:00:10]} e4 {[%emt 0:03:24]} 14. Nd2 {[%emt 0:11:08]} Nb4 {[%emt 0:01:12]} 15. Nxe4 {[%emt 0:00:29]} Nxd5 {[%emt 0:04:15]} 16. Qd2 Nf6 {[%emt 0:23:58]} 17. Nxf6+ {[%emt 0:14:36]} Bxf6 {[%emt 0:01:40]} 18. Bxb7 {[%emt 0:00:38]} Bxh3 {[%emt 0:00:49]} 19. Bxa8 {[%emt 0:00:06]} Bxf1 {[%emt 0:00:23]} 20. Rxf1 {[%emt 0:00:03]} Rxa8 {[%emt 0:00:28]} 21. dxc5 {[%emt 0:00:05]} Bxb2 {[%emt 0:01:01]} 22. Qxb2 {[%emt 0:00:07]} dxc5 {[%emt 0:00:08]} 23. Rc1 {[%emt 0:01:18]} Rd8 {[%emt 0:01:42]} 24. Qc2 {[%emt 0:02:08]} Rd5 {[%emt 0:01:08]} 25. a4 {[%emt 0:02:27]} Qd7 {[%emt 0:04:33]} 26. Qe2 {[%emt 0:14:26]} h5 {[%emt 0:02:05]} 27. e4 {[%emt 0:01:51]} Rd2 {[%emt 0:02:20]} 28. Qe3 {[%emt 0:02:53]} Rd1+ {[%emt 0:05:49]} 29. Rxd1 {[%emt 0:00:06]} Qxd1+ {[%emt 0:00:04]} 30. Kh2 {[%emt 0:00:48]} Qd4 {[%emt 0:01:50]} 31. Qf3 {[%emt 0:01:38]} c4 {[%emt 0:01:34]} 32. bxc4 {[%emt 0:00:04]} Qxc4 {[%emt 0:00:12]} 33. a5 {[%emt 0:00:28]} Qa4 {[%emt 0:02:22]} 34. Qc3 {[%emt 0:03:41]} Qxe4 {[%emt 0:00:56]} 35. Qc8+ {[%emt 0:00:05]} Kg7 {[%emt 0:01:10]} 36. Qc3+ {[%emt 0:00:43]} Kg8 {[%emt 0:01:00]} 37. Qc8+ {[%emt 0:00:26]} Kg7 {[%emt 0:00:09]} 38. Qc3+ {[%emt 0:00:11]} Kg8 {[%emt 0:00:09]} 1/2-1/2

[Event "CZE-ch Junior 2020"]
[Site "Kouty nad Desnou"]
[Date "2020.03.09"]
[Round "5.1"]
[White "Cerny, David"]
[Black "Brejnik, Gustav"]
[Result "0-1"]
[ECO "A21"]
[WhiteElo "2181"]
[BlackElo "2259"]
[Annotator "ChessBase"]
[PlyCount "108"]
[EventDate "2020.03.07"]
[EventCountry "CZE"]
[SourceTitle "playchess.com"]
[Source "ChessBase"]
[SourceQuality "1"]
[TimeControl "5400+30"]

1. c4 {[%emt 0:00:00]} e5 {[%emt 0:00:00]} 2. Nc3 {[%emt 0:00:34]} Bb4 {[%emt 0:00:00]} 3. g3 {[%emt 0:01:29]} Bxc3 {[%emt 0:01:08]} 4. bxc3 {[%emt 0:00:52]} d6 {[%emt 0:00:33]} 5. Bg2 {[%emt 0:00:51]} Ne7 {[%emt 0:00:28]} 6. d4 {[%emt 0:03:30]} Nbc6 {[%emt 0:01:52]} 7. e4 {[%emt 0:02:36]} O-O {[%emt 0:00:30]} 8. Ne2 {[%emt 0:00:45]} f5 {[%emt 0:09:40]} 9. O-O {[%emt 0:04:17]} Qe8 {[%emt 0:07:59]} 10. Be3 {[%emt 0:04:05]} Qh5 {[%emt 0:06:33]} 11. f4 {[%emt 0:03:01]} fxe4 {[%emt 0:02:06]} 12. Bxe4 {[%emt 0:01:28]} Bg4 {[%emt 0:00:22]} 13. Rf2 {[%emt 0:01:02]} exf4 {[%emt 0:01:36]} 14. gxf4 {[%emt 0:06:57]} Nf5 {[%emt 0:06:21]} 15. Qd2 {[%emt 0:04:00]} Rae8 {[%emt 0:05:56]} 16. Bd5+ {[%emt 0:06:38]} Kh8 {[%emt 0:01:36]} 17. Ng3 {[%emt 0:00:24]} Nxg3 {[%emt 0:17:11]} 18. hxg3 {[%emt 0:00:15]} Qh3 {[%emt 0:00:08]} 19. Rg2 {[%emt 0:00:57]} Be6 {[%emt 0:00:05]} 20. Bf3 {[%emt 0:08:21]} Bxc4 {[%emt 0:02:30]} 21. Bf2 {[%emt 0:00:25]} Qf5 {[%emt 0:02:17]} 22. Rh2 {[%emt 0:00:49]} Qd3 {[%emt 0:03:20]} 23. Qxd3 {[%emt 0:01:10]} Bxd3 {[%emt 0:00:02]} 24. Rh5 {[%emt 0:01:19]} Rf5 {[%emt 0:03:24]} 25. Rxf5 {[%emt 0:00:56]} Bxf5 {[%emt 0:00:02]} 26. Re1 {[%emt 0:01:06]} Rxe1+ {[%emt 0:00:28]} 27. Bxe1 {[%emt 0:00:06]} Na5 {[%emt 0:01:05]} 28. Bd5 {[%emt 0:03:12]} c6 {[%emt 0:03:09]} 29. Bb3 {[%emt 0:00:22]} Bd3 {[%emt 0:04:09]} 30. Kf2 {[%emt 0:09:35]} g6 {[%emt 0:00:51]} 31. c4 {[%emt 0:02:57]} Nxc4 {[%emt 0:00:47]} 32. Bxc4 {[%emt 0:00:07]} Bxc4 {[%emt 0:00:04]} 33. a3 {[%emt 0:00:04]} c5 {[%emt 0:05:35]} 34. Ke3 {[%emt 0:01:27]} Kg7 {[%emt 0:00:31]} 35. Ke4 {[%emt 0:00:56]} Kf6 {[%emt 0:00:21]} 36. Bc3 {[%emt 0:01:55]} Ke6 {[%emt 0:00:16]} 37. dxc5 {[%emt 0:03:45]} dxc5 {[%emt 0:00:10]} 38. Be5 {[%emt 0:00:10]} Bd5+ {[%emt 0:00:22]} 39. Ke3 {[%emt 0:00:44]} Kd7 {[%emt 0:05:32]} 40. Kd3 {[%emt 0:01:11]} b6 {[%emt 0:04:12]} 41. Kc3 {[%emt 0:01:35]} Kc6 {[%emt 0:00:22]} 42. Bf6 {[%emt 0:01:07]} Kd7 {[%emt 0:01:07]} 43. Be5 {[%emt 0:01:10]} b5 {[%emt 0:01:01]} 44. Bg7 {[%emt 0:02:19]} a5 {[%emt 0:02:34]} 45. Bf8 {[%emt 0:00:37]} b4+ {[%emt 0:03:01]} 46. axb4 {[%emt 0:00:38]} axb4+ {[%emt 0:00:00]} 47. Kd3 {[%emt 0:00:00]} Kc6 {[%emt 0:00:00]} 48. Be7 {[%emt 0:00:00]} Be6 {[%emt 0:00:00]} 49. Bf8 {[%emt 0:00:00]} Kb5 {[%emt 0:00:00]} 50. Kc2 {[%emt 0:00:00]} Bf5+ {[%emt 0:00:00]} 51. Kb2 {[%emt 0:00:00]} c4 {[%emt 0:00:00]} 52. Be7 {[%emt 0:00:00]} c3+ {[%emt 0:00:00]} 53. Kb3 {[%emt 0:00:00]} Be6+ {[%emt 0:00:00]} 54. Kc2 {[%emt 0:00:00]} Kc4 {[%emt 0:00:00]} 0-1